bitfinex/quotes_BTCUSD_20240701
["timestamp","ask_amount","ask_price","bid_price","bid_amount"]
[1719877027801,0.11406096,62915.0,62914.0,0.88734527]
[1719877027992,0.17886096,62915.0,62914.0,0.88734527]
[1719877028168,0.19361516,62915.0,62914.0,0.82244527]
[1719877028379,0.17686096,62915.0,62914.0,0.88334527]
[1719877028746,0.17786096,62915.0,62914.0,0.86381318]
[1719877028944,0.19161516,62915.0,62914.0,0.86381318]
[1719877029398,0.19160187,62915.0,62914.0,0.86381318]
[1719877029555,0.19260187,62915.0,62914.0,0.86381318]
[1719877029763,0.19260187,62915.0,62914.0,0.88734527]
[1719877030019,0.19160187,62915.0,62914.0,0.88734527]
[1719877030217,1.29496199,62915.0,62914.0,0.00417818]
[1719877030458,1.34495727,62915.0,62914.0,0.00417818]
[1719877030802,1.29655878,62915.0,62914.0,0.00417818]
[1719877031001,1.36164195,62915.0,62914.0,0.00417818]
[1719877031210,1.39524641,62915.0,62914.0,0.00417818]
[1719877031432,1.39424641,62915.0,62914.0,0.00017818]
[1719877031631,1.36064195,62915.0,62914.0,0.00017818]
[1719877032010,1.40824641,62915.0,62914.0,0.00017818]
[1719877032212,1.39324641,62915.0,62914.0,0.00017818]
[1719877032637,1.41124641,62915.0,62914.0,0.00017818]
[1719877032853,1.39724641,62915.0,62914.0,0.00017818]
[1719877033058,1.39324641,62915.0,62914.0,0.00017818]
[1719877033279,1.02092013,62915.0,62914.0,0.00017818]
[1719877033478,1.37191224,62915.0,62914.0,0.00017818]
[1719877033886,1.35791224,62915.0,62914.0,0.00017818]
[1719877034156,1.37191224,62915.0,62914.0,0.00017818]
[1719877034325,1.42225125,62915.0,62914.0,0.00017818]
[1719877034541,1.40825125,62915.0,62914.0,0.00017818]
[1719877034783,1.40825125,62915.0,62912.0,0.000924]
[1719877034784,1.91238758,62913.0,62912.0,0.000924]
[1719877035035,2.30441903,62913.0,62912.0,0.000924]
[1719877035207,2.55942348,62913.0,62912.0,0.000924]
[1719877035379,2.535628,62913.0,62912.0,0.000924]
[1719877035759,2.41072707,62913.0,62912.0,0.000924]
[1719877035959,2.535628,62913.0,62912.0,0.000924]
[1719877036159,2.549628,62913.0,62912.0,0.000924]
[1719877036381,2.25243963,62913.0,62912.0,0.000924]
[1719877036586,2.38525069,62913.0,62912.0,0.000924]
[1719877037045,2.37125128,62913.0,62912.0,0.000924]
[1719877037186,2.38525128,62913.0,62912.0,0.000924]
[1719877037586,2.38514184,62913.0,62912.0,0.000924]
[1719877037832,2.46404184,62913.0,62912.0,0.000924]
[1719877038192,2.36914184,62913.0,62912.0,0.000924]
[1719877038408,2.38131964,62913.0,62912.0,0.000924]
[1719877038631,2.39731964,62913.0,62912.0,0.000924]
[1719877038863,2.38331964,62913.0,62912.0,0.000924]
[1719877039042,2.39731964,62913.0,62912.0,0.000924]
[1719877039246,2.41131964,62913.0,62912.0,0.000924]
[1719877039465,2.39731964,62913.0,62912.0,0.000924]
[1719877039601,2.38152196,62913.0,62912.0,0.000924]
[1719877039803,2.41159476,62913.0,62912.0,0.000924]
[1719877040682,2.41140286,62913.0,62912.0,0.000924]
[1719877041548,0.45304124,62908.0,62907.0,0.009351]
[1719877041747,2.06775492,62908.0,62907.0,0.009351]
[1719877041990,2.36775492,62908.0,62907.0,0.009351]
[1719877042194,2.42015436,62908.0,62907.0,0.009351]
[1719877042371,2.53807836,62908.0,62907.0,0.009351]
[1719877042576,2.46960612,62908.0,62907.0,0.009351]
[1719877042793,2.496635,62908.0,62907.0,0.009351]
[1719877043128,2.431735,62908.0,62907.0,0.009351]
[1719877043535,2.510635,62908.0,62907.0,0.009351]
[1719877044149,2.810635,62908.0,62907.0,0.009351]
[1719877044580,2.510635,62908.0,62907.0,0.009351]
[1719877045564,2.41421834,62908.0,62907.0,0.009351]
[1719877045939,2.51040806,62908.0,62907.0,0.009351]
[1719877046112,2.44550806,62908.0,62907.0,0.009351]
[1719877046349,2.82833206,62908.0,62907.0,0.009351]
[1719877046562,2.51040806,62908.0,62907.0,0.00949835]
[1719877047319,2.81040806,62908.0,62907.0,0.00949835]
[1719877047703,3.11040806,62908.0,62907.0,0.00949835]
[1719877048609,2.81040806,62908.0,62907.0,0.00949835]
[1719877048810,2.71421834,62908.0,62907.0,0.00949835]
[1719877049019,2.80930707,62908.0,62907.0,0.00949835]
[1719877049225,2.71421834,62908.0,62907.0,0.00949835]
[1719877049484,2.80930796,62908.0,62907.0,0.00949835]
[1719877050844,2.77930796,62908.0,62907.0,0.00949835]
[1719877051168,2.47930796,62908.0,62907.0,0.00949835]
[1719877051936,2.41705382,62908.0,62907.0,0.00949835]
[1719877052137,2.48101516,62908.0,62907.0,0.00949835]
[1719877055162,2.48096458,62908.0,62907.0,0.00949835]
[1719877056061,2.09814058,62908.0,62907.0,0.00949835]
[1719877057280,2.08429796,62908.0,62907.0,0.00949835]
[1719877057524,2.09851058,62908.0,62907.0,0.00949835]
[1719877057733,2.14967009,62908.0,62907.0,0.00949835]
[1719877058114,2.00139434,62908.0,62907.0,0.00949835]
[1719877059389,1.85959434,62908.0,62907.0,0.07099835]
[1719877059597,1.92496649,62908.0,62907.0,0.00949835]
[1719877059731,1.90795064,62908.0,62907.0,0.00949835]
[1719877059932,1.82496649,62908.0,62907.0,0.00949835]
[1719877060149,1.81096649,62908.0,62907.0,0.00949835]
[1719877060558,1.89391515,62908.0,62907.0,0.00949835]
[1719877060901,1.89391522,62908.0,62907.0,0.00949835]
[1719877061032,1.89391522,62908.0,62907.0,0.00014735]
[1719877061252,1.89391522,62908.0,62886.0,0.3180764]
[1719877061253,1.13699124,62889.0,62886.0,4.24e-05]
[1719877061451,1.13623881,62889.0,62886.0,4.24e-05]
[1719877061871,1.18416511,62889.0,62886.0,4.24e-05]
[1719877062584,1.19416511,62889.0,62886.0,4.24e-05]
[1719877062795,1.16056065,62889.0,62886.0,4.24e-05]
[1719877063008,0.89252646,62889.0,62886.0,4.24e-05]
[1719877063209,0.10847646,62889.0,62886.0,0.0649424]
[1719877063409,0.15862817,62889.0,62888.0,6.61675406]
[1719877063594,0.09415462,62889.0,62888.0,6.61675406]
[1719877064202,0.09415462,62889.0,62888.0,6.64028615]
[1719877064396,0.09415462,62889.0,62888.0,6.61675406]
[1719877064851,0.10854045,62889.0,62888.0,6.61675406]
[1719877065182,0.10854045,62889.0,62888.0,6.64028615]
[1719877065620,0.06130259,62889.0,62888.0,6.64028615]
[1719877065960,0.10845107,62889.0,62888.0,6.64028615]
[1719877066171,0.10873069,62889.0,62888.0,6.64028615]
[1719877066362,0.15888464,62889.0,62888.0,6.64028615]
[1719877066565,0.15888464,62889.0,62888.0,6.72318615]
[1719877066781,0.15888464,62889.0,62888.0,6.88219815]
[1719877067127,0.15888464,62889.0,62888.0,6.85866606]
[1719877067333,0.15888464,62889.0,62888.0,6.88219815]
[1719877067934,0.15878464,62889.0,62888.0,6.88219815]
[1719877068292,0.15868464,62889.0,62888.0,6.88219815]
[1719877068988,0.14403761,62889.0,62888.0,6.88219815]
[1719877069204,0.1588165,62889.0,62888.0,6.88219815]
[1719877069933,0.1588165,62889.0,62888.0,6.85866606]
[1719877070133,0.1588165,62889.0,62888.0,6.88219815]
[1719877070953,0.1588165,62889.0,62888.0,6.85866606]
[1719877071408,0.1588165,62889.0,62888.0,6.88219815]
[1719877072377,0.06094974,62889.0,62888.0,6.88219815]
[1719877072761,0.10850765,62889.0,62888.0,6.88219815]
[1719877072963,0.15865566,62889.0,62888.0,6.88219815]
[1719877073699,0.15865566,62889.0,62888.0,6.72318615]
[1719877074145,0.15865566,62889.0,62888.0,6.69965406]
[1719877074736,0.15875566,62889.0,62888.0,6.69965406]
[1719877074937,0.15885566,62889.0,62888.0,6.69965406]
[1719877075139,0.15885566,62889.0,62888.0,6.72318615]
[1719877075396,0.15875566,62889.0,62888.0,6.72318615]
[1719877075782,0.15903172,62889.0,62888.0,6.72318615]
[1719877076206,0.15873492,62889.0,62888.0,6.72318615]
[1719877076448,0.15873492,62889.0,62888.0,6.69965406]
[1719877076869,0.15873492,62889.0,62888.0,6.72318615]
[1719877078855,0.15893982,62889.0,62888.0,6.72334124]
[1719877080858,0.15893982,62889.0,62888.0,6.88235324]
[1719877081264,0.06090631,62889.0,62888.0,6.69980915]
[1719877081464,0.10881046,62889.0,62888.0,6.69980915]
[1719877081687,0.10881046,62889.0,62888.0,6.55370915]
[1719877081688,0.42700811,62889.0,62888.0,6.55370915]
[1719877081963,0.58611811,62889.0,62888.0,6.55370915]
[1719877082320,0.31808392,62889.0,62888.0,6.55370915]
[1719877082540,0.15907392,62889.0,62888.0,6.55370915]
[1719877083546,0.15907392,62889.0,62888.0,6.57724124]
[1719877084148,0.10891046,62889.0,62888.0,6.73625324]
[1719877084367,0.1097378,62889.0,62888.0,6.73625324]
[1719877084776,0.1098378,62889.0,62888.0,6.73625324]
[1719877085154,0.1098378,62889.0,62888.0,6.73635324]
[1719877085356,0.1098378,62889.0,62888.0,7.05437824]
[1719877086252,0.1098378,62889.0,62888.0,7.05530224]
[1719877086748,0.1106778,62889.0,62888.0,7.05530224]
[1719877086887,0.1106778,62889.0,62888.0,7.37332724]
[1719877087093,0.07097149,62889.0,62888.0,7.51152724]
[1719877087313,0.07097149,62889.0,62888.0,7.82955224]
[1719877087534,0.02224,62889.0,62888.0,7.82955224]
[1719877087744,0.05528917,62889.0,62888.0,7.82955224]
[1719877088114,0.04422787,62889.0,62888.0,7.82955224]
[1719877088316,0.05522787,62889.0,62888.0,7.82955224]
[1719877088948,0.03422787,62889.0,62888.0,7.82955224]
[1719877089301,0.03522787,62889.0,62888.0,7.82955224]
[1719877090560,0.03523034,62889.0,62888.0,7.83055224]
[1719877090726,0.03523034,62889.0,62888.0,7.82955224]
[1719877091009,0.03523034,62889.0,62888.0,7.86351805]
[1719877091209,0.03623034,62889.0,62888.0,7.86351805]
[1719877091480,0.03623034,62889.0,62888.0,7.83155224]
[1719877092484,0.00324,62889.0,62888.0,7.83155224]
[1719877097205,0.00224,62889.0,62888.0,7.83155224]
[1719877097419,0.00124,62889.0,62888.0,7.82955224]
[1719877097941,0.06414,62889.0,62888.0,6.71474515]
[1719877098166,0.06414,62889.0,62888.0,6.55673315]
[1719877098167,0.36610844,62889.0,62888.0,6.55673315]
[1719877098347,0.45450967,62889.0,62888.0,6.55673315]
[1719877098546,0.45450967,62889.0,62888.0,6.55573315]
[1719877098867,0.54524992,62889.0,62888.0,6.55473315]
[1719877099075,0.54724992,62889.0,62888.0,6.55673315]
[1719877099288,0.54724992,62889.0,62888.0,6.55573315]
[1719877100041,0.5321693,62889.0,62888.0,6.55573315]
[1719877100239,0.6911793,62889.0,62888.0,6.55573315]
[1719877100503,1.0081993,62889.0,62888.0,6.55473315]
[1719877100715,0.66457484,62889.0,62888.0,6.55473315]
[1719877100910,0.67257484,62889.0,62888.0,6.55473315]
[1719877101546,1.0071993,62889.0,62888.0,6.55473315]
[1719877101720,1.0281993,62889.0,62888.0,6.55473315]
[1719877102092,1.03253955,62889.0,62888.0,6.55473315]
[1719877102298,1.02953955,62889.0,62888.0,6.55473315]
[1719877102696,1.34755955,62889.0,62888.0,6.55473315]
[1719877102881,1.39761879,62889.0,62888.0,6.55473315]
[1719877103425,1.34753561,62889.0,62888.0,6.55473315]
[1719877103630,1.33953561,62889.0,62888.0,6.55473315]
[1719877103773,1.39761239,62889.0,62888.0,6.55473315]
[1719877103984,1.40761239,62889.0,62888.0,6.55473315]
[1719877104303,1.70763239,62889.0,62888.0,6.55473315]
[1719877104471,1.79363239,62889.0,62888.0,6.55473315]
[1719877104672,1.72863239,62889.0,62888.0,6.55473315]
[1719877105081,1.72863239,62889.0,62888.0,6.54973315]
[1719877105280,1.70763239,62889.0,62888.0,6.54973315]
[1719877105541,1.72163239,62889.0,62888.0,6.54973315]
[1719877105812,1.73563239,62889.0,62888.0,6.54973315]
[1719877106603,1.73563239,62889.0,62888.0,6.54977534]
[1719877109151,1.72129214,62889.0,62888.0,6.54977534]
[1719877109564,1.7352701,62889.0,62888.0,6.54977534]
[1719877110151,1.73525829,62889.0,62888.0,6.54977534]
[1719877110336,1.96259727,62889.0,62888.0,6.54977534]
[1719877110866,1.94859727,62889.0,62888.0,6.54977534]
[1719877111064,1.93459727,62889.0,62888.0,6.54977534]
[1719877111270,1.94859727,62889.0,62888.0,6.54977534]
[1719877111496,1.89759727,62889.0,62888.0,6.54977534]
[1719877111729,1.33883829,62889.0,62888.0,6.54977534]
[1719877112361,1.28880321,62889.0,62888.0,6.54977534]
[1719877112605,1.32257521,62889.0,62888.0,6.54977534]
[1719877112798,1.37052546,62889.0,62888.0,6.54977534]
[1719877112937,1.336921,62889.0,62888.0,6.54977534]
[1719877113346,1.37052546,62889.0,62888.0,6.54977534]
[1719877114904,0.59188546,62889.0,62888.0,6.54977534]
[1719877115484,0.99040546,62889.0,62888.0,6.54977534]
[1719877115852,0.99057054,62889.0,62888.0,6.54977534]
[1719877117322,1.05457054,62889.0,62888.0,6.54977534]
[1719877118991,1.02171927,62889.0,62888.0,6.54977534]
[1719877119196,1.04032701,62889.0,62888.0,6.54977534]
[1719877119531,1.05459667,62889.0,62888.0,6.54977534]
[1719877119732,1.02099221,62889.0,62888.0,6.54977534]
[1719877119944,0.75295802,62889.0,62888.0,6.54977534]
[1719877120148,0.29043802,62889.0,62888.0,6.54977534]
[1719877120453,0.13142802,62889.0,62888.0,6.54977534]
[1719877120645,0.11715836,62889.0,62888.0,6.54977534]
[1719877120825,0.06218799,62889.0,62888.0,6.63830743]
[1719877121065,0.06218799,62889.0,62888.0,7.11534443]
[1719877121258,0.06218799,62889.0,62888.0,7.17922535]
[1719877121641,0.04818799,62889.0,62888.0,7.17922535]
[1719877122028,0.05913033,62889.0,62888.0,7.17922535]
[1719877122227,0.04513033,62889.0,62888.0,7.17922535]
[1719877122433,0.05513033,62889.0,62888.0,7.15569326]
[1719877123183,0.05513033,62889.0,62888.0,7.17922535]
[1719877125350,0.05513033,62889.0,62888.0,7.49725035]
[1719877125720,0.05513033,62889.0,62888.0,7.89597535]
[1719877125875,0.05513033,62889.0,62888.0,7.92794116]
[1719877126052,0.05513033,62889.0,62888.0,7.89597535]
[1719877126350,0.02224,62889.0,62888.0,7.89597535]
[1719877126550,0.01124,62889.0,62888.0,7.89597535]
[1719877126749,0.03616843,62889.0,62888.0,7.89597535]
[1719877127189,0.03616843,62889.0,62888.0,7.89797535]
[1719877127408,0.03416843,62889.0,62888.0,7.89597535]
[1719877127611,0.03416843,62889.0,62888.0,7.89997535]
[1719877128462,0.03416843,62889.0,62888.0,8.06231433]
[1719877128627,0.03419969,62889.0,62888.0,8.06231433]
[1719877128985,0.03420008,62889.0,62888.0,8.06231433]
[1719877129387,0.00124,62889.0,62888.0,8.05831433]
[1719877129585,0.00224,62889.0,62888.0,8.61230514]
[1719877129858,0.00324,62889.0,62888.0,8.61630514]
[1719877130625,0.00324,62889.0,62888.0,8.81630514]
[1719877130898,0.00324,62889.0,62888.0,8.71630514]
[1719877131104,0.00324,62889.0,62888.0,8.91630514]
[1719877140238,0.00324,62889.0,62888.0,9.27959883]
[1719877140690,0.00324,62889.0,62888.0,9.59762383]
[1719877141644,0.00324,62889.0,62888.0,9.90381783]
[1719877142339,0.0663,62908.0,62907.0,1.13628309]
[1719877142598,0.0663,62908.0,62907.0,1.20128309]
[1719877142599,0.03301303,62908.0,62907.0,1.20128309]
[1719877142805,0.14094,62912.0,62911.0,0.02353209]
[1719877142954,0.17395343,62912.0,62911.0,0.541863]
[1719877143125,0.17395343,62912.0,62911.0,0.56539509]
[1719877143320,0.18838415,62912.0,62911.0,0.859772]
[1719877143533,0.18829045,62912.0,62911.0,0.859772]
[1719877143750,0.18829045,62912.0,62911.0,0.88330409]
[1719877143949,0.18829045,62912.0,62911.0,0.859772]
[1719877144151,0.20229045,62912.0,62911.0,0.859772]
[1719877144367,0.20229045,62912.0,62911.0,0.88330409]
[1719877145368,0.21629045,62912.0,62911.0,0.88430409]
[1719877146789,0.2023207,62912.0,62911.0,0.88430409]
[1719877147189,0.2113207,62912.0,62911.0,0.88530409]
[1719877147818,0.1973207,62912.0,62911.0,0.88430409]
[1719877148542,0.1883207,62912.0,62911.0,0.88330409]
[1719877148841,0.1963207,62912.0,62911.0,0.88430409]
[1719877149039,0.1963207,62912.0,62911.0,0.860672]
[1719877149186,0.2043207,62912.0,62911.0,0.861672]
[1719877149387,0.47235489,62912.0,62911.0,0.861672]
[1719877149589,0.47235489,62912.0,62911.0,0.861772]
[1719877149919,0.47235233,62912.0,62911.0,0.861772]
[1719877150137,0.20431814,62912.0,62911.0,0.861772]
[1719877150324,0.47235233,62912.0,62911.0,0.86191562]
[1719877151018,0.20431814,62912.0,62911.0,0.86191562]
[1719877151273,0.51205864,62912.0,62911.0,0.54400662]
[1719877151416,1.32196962,62912.0,62911.0,0.00224362]
[1719877151621,1.03767008,62912.0,62911.0,0.00224362]
[1719877152015,1.0521008,62912.0,62911.0,0.00224362]
[1719877152530,0.43255815,62912.0,62911.0,0.00224362]
[1719877152734,0.43265815,62912.0,62911.0,0.00224362]
[1719877152929,0.7506018,62912.0,62911.0,0.00224362]
[1719877153180,1.01863599,62912.0,62911.0,0.00224362]
[1719877155443,0.4327978,62912.0,62911.0,0.00224362]
[1719877155844,0.4327978,62912.0,62911.0,0.00234362]
[1719877156351,0.4333469,62912.0,62911.0,0.00234362]
[1719877158408,0.2743949,62912.0,62911.0,0.00234362]
[1719877159400,0.25877955,62912.0,62911.0,0.00234362]
[1719877159709,0.27515063,62912.0,62911.0,0.00234362]
[1719877160754,0.09534432,62912.0,62911.0,0.88564771]
[1719877161097,0.13505063,62912.0,62911.0,0.88564771]
[1719877162355,0.13482482,62912.0,62911.0,0.88564771]
[1719877162571,0.13480788,62912.0,62911.0,0.88564771]
[1719877163155,0.09510157,62912.0,62911.0,0.88564771]
[1719877163340,0.13480788,62912.0,62911.0,0.79711562]
[1719877165755,0.13488945,62912.0,62911.0,0.79711562]
[1719877165947,0.13488945,62912.0,62911.0,0.82064771]
[1719877167018,0.13488945,62912.0,62911.0,0.47920662]
[1719877168395,0.45329142,62912.0,62911.0,0.47920662]
[1719877168930,0.08560775,62912.0,62911.0,0.47920662]
[1719877169096,0.1860015,62912.0,62911.0,0.47920662]
[1719877169418,0.18605611,62912.0,62911.0,0.47920662]
[1719877169824,0.1356741,62912.0,62911.0,0.47920662]
[1719877170530,0.18607911,62912.0,62911.0,0.47920662]
[1719877171986,0.08560775,62912.0,62911.0,0.47920662]
[1719877172192,0.18644523,62912.0,62911.0,0.47920662]
[1719877172392,0.18644523,62912.0,62911.0,0.50273871]
[1719877174517,0.14673892,62912.0,62911.0,1.02064771]
[1719877174937,0.07908,62912.0,62911.0,1.33855671]
[1719877175163,0.07908,62912.0,62911.0,1.48415671]
[1719877175366,0.06474698,62912.0,62911.0,1.48415671]
[1719877175767,0.06474698,62912.0,62911.0,1.51612252]
[1719877176816,0.05674698,62912.0,62911.0,1.58012252]
[1719877177026,0.04874698,62912.0,62911.0,1.7414615]
[1719877177181,0.04874698,62912.0,62911.0,1.7424615]
[1719877178442,0.04865537,62912.0,62911.0,1.7424615]
[1719877179544,0.01547072,62912.0,62911.0,1.7424615]
[1719877180989,0.01547072,62912.0,62911.0,2.0603705]
[1719877182153,0.01547072,62912.0,62911.0,2.52066419]
[1719877182397,0.01547072,62912.0,62911.0,2.54458819]
[1719877183709,0.01647072,62912.0,62911.0,2.55358819]
[1719877184133,0.01547072,62912.0,62911.0,2.54358819]
[1719877184508,0.01647072,62912.0,62911.0,2.55458819]
[1719877186183,0.01747072,62912.0,62911.0,2.56458819]
[1719877187278,0.01647072,62912.0,62911.0,2.55458819]
[1719877187750,0.01747072,62912.0,62911.0,2.56758819]
[1719877191539,0.01747072,62912.0,62911.0,2.96549719]
[1719877191745,0.01747072,62912.0,62911.0,3.06549719]
[1719877191939,0.01747072,62912.0,62911.0,3.31547232]
[1719877192179,0.01747072,62912.0,62911.0,3.31546617]
[1719877192356,0.01747072,62912.0,62911.0,3.24406819]
[1719877193145,0.01747072,62912.0,62911.0,3.29165338]
[1719877194391,0.01747072,62912.0,62911.0,3.29164788]
[1719877195314,0.01747072,62912.0,62911.0,3.24406819]
[1719877202499,0.01747072,62912.0,62911.0,3.21210238]
[1719877202701,0.01747072,62912.0,62911.0,2.39252869]
[1719877202915,0.01747072,62912.0,62911.0,2.30972869]
[1719877203320,0.01747072,62912.0,62911.0,2.60198819]
[1719877206337,0.01747072,62912.0,62911.0,2.30972869]
[1719877208022,0.01747072,62912.0,62911.0,2.3416945]
[1719877210655,0.01747072,62912.0,62911.0,2.60198819]
[1719877211656,0.01747072,62912.0,62911.0,2.3416945]
[1719877212236,0.01747072,62912.0,62911.0,2.30972869]
[1719877212648,0.01747072,62912.0,62911.0,2.60198819]
[1719877213229,0.16097072,62912.0,62911.0,1.82381969]
[1719877213844,0.16097072,62912.0,62911.0,1.72381969]
[1719877214041,0.16097072,62912.0,62911.0,1.78881969]
[1719877214249,0.17569751,62912.0,62911.0,1.78881969]
[1719877215182,0.16097072,62912.0,62911.0,1.78881969]
[1719877216773,0.16097072,62912.0,62911.0,1.8207855]
[1719877220230,0.16097072,62912.0,62911.0,2.08107919]
[1719877220231,0.01747072,62912.0,62911.0,2.08107919]
[1719877220430,0.01747072,62912.0,62911.0,2.16447919]
[1719877220630,0.01747072,62912.0,62911.0,2.21213248]
[1719877220849,0.01747072,62912.0,62911.0,2.25978577]
[1719877221190,0.01747072,62912.0,62911.0,2.57769477]
[1719877222009,0.01747072,62912.0,62911.0,2.31740108]
[1719877222226,0.01747072,62912.0,62911.0,2.2220945]
[1719877222815,0.01747072,62912.0,62911.0,2.31746262]
[1719877223217,0.01747072,62912.0,62911.0,3.88038531]
[1719877223422,0.01747072,62912.0,62911.0,3.88501719]
[1719877223650,0.01747072,62912.0,62911.0,3.56710819]
[1719877223902,0.01747072,62912.0,62911.0,4.02806024]
[1719877224108,0.01747072,62912.0,62911.0,3.71015124]
[1719877224235,0.01747072,62912.0,62911.0,3.56710819]
[1719877225522,0.01747072,62912.0,62911.0,3.85158519]
[1719877225672,0.01747072,62912.0,62911.0,3.18238419]
[1719877225859,0.01747072,62912.0,62911.0,2.3416945]
[1719877226619,0.01747072,62912.0,62911.0,2.22972869]
[1719877226821,0.01747072,62912.0,62911.0,2.16472869]
[1719877227026,0.01747072,62912.0,62911.0,2.22972869]
[1719877227161,0.01747072,62912.0,62911.0,2.32508886]
[1719877228419,0.01747072,62912.0,62911.0,2.22972869]
[1719877228684,0.01747072,62912.0,62911.0,2.3250899]
[1719877229015,0.01747072,62912.0,62911.0,2.35705571]
[1719877230422,0.01747072,62912.0,62911.0,2.2616945]
[1719877231183,0.01747072,62912.0,62911.0,2.35705513]
[1719877231762,0.01747072,62912.0,62911.0,2.2616945]
[1719877231986,0.01747072,62912.0,62911.0,2.35705697]
[1719877233871,0.01747072,62912.0,62911.0,2.2616945]
[1719877236003,0.01747072,62912.0,62911.0,2.22972869]
[1719877236197,0.01747072,62912.0,62911.0,2.32509175]
[1719877237961,0.01747072,62912.0,62911.0,2.26009453]
[1719877238165,0.01747072,62912.0,62911.0,2.32509453]
[1719877238968,0.01747072,62912.0,62911.0,2.35706034]
[1719877239106,0.01747072,62912.0,62911.0,2.2616945]
[1719877239311,0.01747072,62912.0,62911.0,2.35706034]
[1719877240272,0.01747072,62912.0,62911.0,2.32509453]
[1719877241269,0.01747072,62912.0,62911.0,2.22972869]
[1719877243024,0.01747072,62912.0,62911.0,2.2616945]
[1719877243327,0.01747072,62912.0,62911.0,2.22972869]
[1719877244250,0.01747072,62912.0,62911.0,2.32510089]
[1719877244476,0.01747072,62912.0,62911.0,2.32510137]
[1719877246464,0.01747072,62912.0,62911.0,2.35706718]
[1719877246669,0.01747072,62912.0,62911.0,2.32510137]
[1719877247508,0.01747072,62912.0,62911.0,2.32510812]
[1719877247711,0.01747072,62912.0,62911.0,2.35707393]
[1719877247924,0.01747072,62912.0,62911.0,2.35707481]
[1719877248126,0.01747072,62912.0,62911.0,2.37637228]
[1719877248533,0.01747072,62912.0,62911.0,2.51867228]
[1719877248851,0.01747072,62912.0,62911.0,2.42329197]
[1719877250571,0.01747072,62912.0,62911.0,2.76748566]
[1719877250776,0.01747072,62912.0,62911.0,2.98051566]
[1719877251216,0.01747072,62912.0,62911.0,3.29842466]
[1719877251421,0.01647072,62912.0,62911.0,3.28742466]
[1719877251618,0.01547072,62912.0,62911.0,2.96751566]
[1719877251939,0.01747072,62912.0,62911.0,2.98051566]
[1719877252075,0.01647072,62912.0,62911.0,2.96951566]
[1719877252594,0.01747072,62912.0,62911.0,3.29842466]
[1719877253596,0.01747072,62912.0,62911.0,3.08539466]
[1719877253951,0.01747072,62912.0,62911.0,4.07526966]
[1719877262722,0.01747072,62912.0,62911.0,4.20728286]
[1719877265854,0.01747072,62912.0,62911.0,4.20728288]
[1719877266055,0.01747072,62912.0,62911.0,4.3392961]
[1719877267992,0.01747072,62912.0,62911.0,3.3494211]
[1719877268171,0.01747072,62912.0,62911.0,5.4519951]
[1719877268591,0.01747072,62912.0,62911.0,5.59506021]
[1719877268820,0.01747072,62912.0,62911.0,5.4519951]
[1719877268972,0.01747072,62912.0,62911.0,5.31998188]
[1719877269177,0.01747072,62912.0,62911.0,5.59505307]
[1719877269465,0.01747072,62912.0,62911.0,5.31998188]
[1719877269671,0.01747072,62912.0,62911.0,5.59505522]
[1719877270222,0.01747072,62912.0,62911.0,5.44131027]
[1719877271828,7.2e-07,62912.0,62911.0,5.58437622]
[1719877272062,7.2e-07,62912.0,62911.0,3.49248122]
[1719877272272,7.2e-07,62912.0,62911.0,3.3494082]
[1719877272668,0.00104,62915.0,62914.0,2.26420859]
[1719877272893,0.00104,62915.0,62914.0,5.53130308]
[1719877273215,0.00104,62915.0,62914.0,5.38826689]
[1719877273363,0.00104,62915.0,62914.0,5.39147489]
[1719877273780,0.00104,62915.0,62914.0,5.15925489]
[1719877273980,0.00504,62915.0,62914.0,5.16025489]
[1719877274186,0.00604,62915.0,62914.0,5.03517589]
[1719877274386,0.00604,62915.0,62914.0,5.00182489]
[1719877274588,0.00604,62915.0,62914.0,5.00172489]
[1719877274804,0.00604,62915.0,62914.0,5.00162489]
[1719877275572,0.00604,62915.0,62914.0,5.00162797]
[1719877277672,1e-06,62915.0,62914.0,5.00162797]
[1719877277900,0.0613,62924.0,62923.0,1.82805959]
[1719877278100,0.0798,62925.0,62924.0,0.7320619]
[1719877278440,0.0798,62925.0,62924.0,2.01859706]
[1719877278661,0.0798,62925.0,62924.0,1.97092988]
[1719877278864,0.0798,62925.0,62924.0,2.01859512]
[1719877279218,0.0798,62925.0,62924.0,2.01859495]
[1719877279417,0.0798,62925.0,62924.0,2.81948695]
[1719877279990,0.0798,62925.0,62924.0,2.77182188]
[1719877280120,0.0798,62925.0,62924.0,2.83348483]
[1719877280320,0.0798,62925.0,62924.0,3.09377852]
[1719877280720,0.0798,62925.0,62924.0,3.04611557]
[1719877281335,0.00084,62926.0,62925.0,1.94586259]
[1719877281574,0.00084,62926.0,62925.0,3.32206555]
[1719877281909,0.00084,62926.0,62925.0,3.27440557]
[1719877282145,0.00084,62926.0,62925.0,3.32206326]
[1719877282517,0.00084,62926.0,62925.0,3.28840557]
[1719877282898,0.00084,62926.0,62925.0,3.51568785]
[1719877284631,0.00084,62926.0,62925.0,3.52968785]
[1719877285240,0.00084,62926.0,62925.0,3.27860213]
[1719877285438,0.00084,62926.0,62925.0,3.37388984]
[1719877285642,0.00084,62926.0,62925.0,3.27860213]
[1719877286871,0.00084,62926.0,62925.0,2.70901313]
[1719877287022,0.00084,62926.0,62925.0,3.87852613]
[1719877287209,0.00084,62926.0,62925.0,3.97381384]
[1719877287411,0.00084,62926.0,62925.0,3.72884084]
[1719877287615,0.00084,62926.0,62925.0,3.59381613]
[1719877288254,0.00084,62926.0,62925.0,3.6775358]
[1719877288472,0.00084,62926.0,62925.0,3.54556263]
[1719877288806,0.00084,62926.0,62925.0,3.67754493]
[1719877289042,0.00084,62926.0,62925.0,3.59354537]
[1719877289579,0.00084,62926.0,62925.0,3.47448131]
[1719877289932,0.00084,62926.0,62925.0,3.56971103]
[1719877291502,0.00084,62926.0,62925.0,3.47448219]
[1719877291681,0.00084,62926.0,62925.0,3.56971172]
[1719877292042,0.00084,62926.0,62925.0,3.58888411]
[1719877292244,0.00084,62926.0,62925.0,3.52410711]
[1719877293722,0.00084,62926.0,62925.0,3.58910711]
[1719877294901,0.00084,62926.0,62925.0,3.58910113]
[1719877295600,0.00084,62926.0,62925.0,3.58900113]
[1719877296596,0.00084,62926.0,62925.0,3.58890113]
[1719877298127,0.00084,62926.0,62925.0,3.58889466]
[1719877298502,0.00084,62926.0,62925.0,3.58889527]
[1719877300316,0.00084,62926.0,62925.0,3.49367758]
[1719877300479,0.00084,62926.0,62925.0,3.49269614]
[1719877301267,0.00084,62926.0,62925.0,3.43781252]
[1719877301457,0.00084,62926.0,62925.0,3.63009082]
[1719877301857,0.00104,62927.0,62926.0,2.26239115]
[1719877302058,0.00104,62927.0,62926.0,4.09582488]
[1719877302481,0.00104,62927.0,62926.0,4.02999243]
[1719877303447,0.00104,62927.0,62926.0,3.95356043]
[1719877303660,0.00104,62927.0,62926.0,3.95456043]
[1719877303661,1.00104,62927.0,62926.0,3.95456043]
[1719877303858,1.01349224,62927.0,62926.0,3.95556043]
[1719877304062,1.01349224,62927.0,62926.0,3.95456043]